[Event "SixDays Budapest March IM B 2025"]
[Site "Budapest"]
[Date "2025.03.24"]
[Round "1.5"]
[White "Horvath, David"]
[Black "Kolimar, Kristof Pal"]
[Result "1/2-1/2"]
[Annotator "TA"]
[ECO "D37"]
[WhiteElo "2279"]
[BlackElo "2284"]
[PlyCount "168"]
[EventDate "2025.03.23"]
[EventCountry "HUN"]
[SourceTitle "playchess.com"]
[Source "ChessBase"]
[SourceQuality "1"]
[TimeControl "5400+30"]

{[%evp 19,168,14,42,0,0,0,14,18,28,29,34,20,24,30,20,19,29,-11,6,0,30,-64,-58,-61,-63,-63,0,0,-23,-6,-7,-14,15,0,0,0,0,0,0,0,27,-16,-12,-24,0,-62,-65,-61,-46,-39,-23,-85,-42,-80,0,0,0,-138,-125,-162,-176,-171,-170,-176,-175,-187,-187,-219,-212,-219,-212,-212,-200,-255,-254,-244,-239,-236,-231,-327,-304,-317,-318,-301,-214,-215,-220,-217,-214,-266,-236,-228,-250,-262,-212,-262,0,-262,-262,-236,-140,-130,-79,-79,-79,-79,-72,-71,-26,-64,-8,-8,-8,-79,-18,-79,-79,-79,-79,-79,-79,-79,-79,-79,-79,-79,-79,-79,-8,-8,-8,-8,-8,-8,0,0,0,0,0,0,0,0,0,0,0,0,0,0,0,0,0]} 1. c4 {[%emt 0:00:03]} e6 {[%emt 0:00:09]} 2. Nc3 {[%emt 0:00:06]} d5 {[%emt 0:00:09]} 3. d4 {[%emt 0:00:05]} Nf6 {[%emt 0:00:33]} 4. Nf3 {[%emt 0:01:54]} Be7 {[%emt 0:00:05]} 5. Bf4 {[%emt 0:01:00]} O-O {[%emt 0:00:19]} 6. e3 {[%emt 0:00:04]} c5 {[%emt 0:01:17]} 7. dxc5 {[%emt 0:08:35]} Bxc5 {[%emt 0:00:07]} 8. a3 {[%emt 0:14:04]} Nc6 {[%emt 0:00:21]} 9. Qc2 {[%emt 0:03:30]} Qa5 {[%emt 0:07:17]} 10. Rd1 {[%emt 0:26:06]} Ne4 {[%emt 0:07:05] 10...h6 gains popularity.} 11. Nd2 {[%emt 0:01:57] And now Nb3 would win. D37: Queen's Gambit Declined: 5 Bf4.} Nxc3 {[%emt 0:20:36]} 12. Nb3 {[%emt 0:04:31]} Qd8 $146 {[%emt 0:17:41] A sharp opening} (12... Qb6 13. Qxc3 Be7 14. cxd5 exd5 15. Rxd5 a6 16. Nd4 Bf6 17. Rd6 Be6 18. Qd2 Rad8 19. Nxe6 fxe6 {1-0 Arbatskaia,N-Tsiganova,M (2120) URS-ch1 (Women) 1989}) 13. Qxc3 {[%emt 0:00:33]} Be7 {[%emt 0:01:39]} 14. Be2 {[%emt 0:09:19]} a5 {[%emt 0:05:41][%cal Ba7a5,Ba5a4][%mdl 32]} 15. O-O {[%emt 0:09:01]} Bf6 $1 {[%emt 0:08:01]} 16. Qc2 {[%emt 0:00:48]} a4 {[%emt 0:00:06]} 17. Nc5 {[%emt 0:01:15]} d4 {[%emt 0:03:10]} 18. Bf3 {[%emt 0:08:21]} (18. Nxa4 e5 19. Bg3 e4 $16) 18... e5 {[%emt 0:10:39]} 19. Bg3 {[%emt 0:00:03]} Qe7 {[%emt 0:01:52]} 20. Bxc6 {[%emt 0:02:32]} (20. Nxa4 d3 21. Rxd3 (21. Qxd3 Rxa4 22. Qc2 Ra5 $17) 21... e4 22. Bxe4 Qxe4 $15) (20. Ne4 $11) 20... bxc6 $15 {[%emt 0:00:05]} 21. exd4 {[%emt 0:01:34]} exd4 {[%emt 0:00:06][%csl Od4] Black has a strong passed pawn} 22. Nxa4 {[%emt 0:02:50]} Bg4 {[%emt 0:05:24]} (22... d3 $1 $15 23. Qb3 (23. Qxd3 Rxa4 24. Bd6 Qd8 $15) (23. Rxd3 $2 Bf5 $19) 23... Bf5) 23. Rde1 {[%emt 0:01:15]} Qa7 {[%emt 0:00:04]} 24. b3 {[%emt 0:00:11]} Rad8 {[%emt 0:02:29]} 25. Qd3 {[%emt 0:00:24]} Qa5 {[%emt 0:01:26][%mdl 1024] Black has compensation.} 26. Bf4 {[%emt 0:00:50]} Bf5 {[%emt 0:03:42] A strong pair of Bishops.} 27. Qd1 {[%emt 0:00:14]} d3 {[%emt 0:01:36]} 28. Qd2 {[%emt 0:02:06]} Qa7 {[%emt 0:01:52]} 29. h3 {[%emt 0:00:40]} Bd4 {[%emt 0:00:30]} 30. Be3 {[%emt 0:00:28]} Rb8 {[%emt 0:00:46]} 31. Rb1 {[%emt 0:00:35]} Rfe8 {[%emt 0:00:37][%cal Re8e3]} 32. Rfe1 {[%emt 0:00:23]} (32. Bxd4 $1 $11 Qxd4 33. Rfe1) 32... Bxe3 $1 {[%emt 0:00:22]} 33. Rxe3 {[%emt 0:00:55]} h6 {[%emt 0:00:35]} 34. c5 {[%emt 0:00:38]} Rxe3 {[%emt 0:00:32]} 35. fxe3 {[%emt 0:00:06]} (35. Qxe3 $11 Bg6 36. Qe5) 35... Re8 {[%emt 0:00:29]} 36. Re1 {[%emt 0:00:37] White is weak on the light squares} Qb8 {[%emt 0:00:30]} (36... Re5 $17) 37. b4 $1 $11 {[%emt 0:00:24]} Qa7 $36 {[%emt 0:00:29][%mdl 2048] Black has good play.} 38. Nc3 {[%emt 0:00:29]} (38. Nb6 $11) 38... Qxa3 $17 {[%emt 0:00:09]} 39. e4 {[%emt 0:00:06]} Bg6 {[%emt 0:00:49][%csl Oe4] Black attacks a weakness} 40. Qxd3 {[%emt 0:01:04]} Qxb4 {[%emt 0:00:05]} 41. Qe3 {[%emt 0:00:48]} Re5 {[%emt 0:00:10]} 42. Rb1 {[%emt 0:00:28]} Qxc5 {[%emt 0:00:05]} 43. Kf2 {[%emt 0:00:22]} Qe7 {[%emt 0:01:23][%cal Rg6e4]} (43... Bxe4 $2 44. Qxc5 Rxc5 45. Nxe4 $18) 44. Re1 {[%emt 0:00:41]} Kh7 {[%emt 0:00:20]} 45. Qd4 {[%emt 0:00:31]} Qh4+ {[%emt 0:00:28]} 46. Kf1 {[%emt 0:00:13] [#]} Rf5+ {[%emt 0:00:44][%mdl 512]} 47. Ke2 Rf6 {[%emt 0:00:50]} 48. Qe3 {[%emt 0:00:55] Prevents Qg3} Qh5+ {[%emt 0:00:29]} 49. Kd2 {[%emt 0:00:37]} (49. g4 {was called for.} Qe5 50. Rb1) 49... Rd6+ $19 {[%emt 0:00:17]} 50. Kc2 {[%emt 0:00:25]} Qe5 {[%emt 0:00:35]} 51. Rd1 {[%emt 0:00:26]} Rxd1 {[%emt 0:00:26]} 52. Kxd1 {[%emt 0:00:01][%mdl 4096] Endgame KQB-KQN. Black is a pawn up.} f5 {[%emt 0:00:06]} 53. Kd2 {[%emt 0:00:40]} fxe4 {[%emt 0:00:26]} 54. Ne2 {[%emt 0:00:40]} Qd5+ {[%emt 0:00:56]} 55. Ke1 {[%emt 0:00:07]} Qd3 {[%emt 0:00:03]} 56. Kf2 {[%emt 0:00:12]} Qc2 {[%emt 0:00:46]} 57. Kg3 {[%emt 0:00:16]} Qd3 {[%emt 0:00:43]} 58. Kf2 {[%emt 0:00:05]} Qxe3+ {[%emt 0:00:05]} 59. Kxe3 {[%emt 0:00:01] KB-KN. Black is two pawns up.} Kg8 {[%emt 0:00:06]} (59... Bf7 $1 $19 60. h4 Kg6 61. Kxe4 Kh5) 60. Nd4 $17 {[%emt 0:01:15] [#]} c5 {[%emt 0:01:13]} (60... Be8 $142 $1 61. h4 Kf7 62. Kxe4 Kf6) 61. Ne6 {[%emt 0:00:16]} c4 {[%emt 0:00:09]} 62. Nf4 {[%emt 0:00:52]} Be8 {[%emt 0:00:48]} 63. Kd4 {[%emt 0:00:54]} Bb5 {[%emt 0:00:40]} 64. g3 {[%emt 0:00:57]} g5 {[%emt 0:00:31]} ({Black should play} 64... Kf8 $15) 65. Nd5 $11 {[%emt 0:00:28]} Kf7 {[%emt 0:00:08]} 66. Nc3 {[%emt 0:00:24] [#]} (66. g4 $11 {keeps the balance.}) 66... Bd7 {[%emt 0:00:45]} (66... Bc6 67. Kxc4 Bd7 68. Nxe4 $11) (66... e3 $1 $17 {[%cal Of7g6] And now ...Kg6! would win.} 67. Kxe3 (67. Nxb5 $2 {is the wrong capture.} e2 $19) 67... Bd7) 67. Kxc4 {[%emt 0:00:07]} (67. g4 $1 $11) 67... Bxh3 {[%emt 0:00:35]} 68. Nxe4 {[%emt 0:00:04]} Ke6 {[%emt 0:00:12]} 69. Kd4 {[%emt 0:00:25]} Bg2 {[%emt 0:00:49] ( -> ...Bxe4)} 70. Nf2 {[%emt 0:00:04]} h5 {[%emt 0:00:11]} 71. Ke3 {[%emt 0:01:00]} Ke5 {[%emt 0:00:13]} 72. Kd3 {[%emt 0:01:12]} Kf5 {[%emt 0:01:15]} ({Don't play} 72... h4 73. Ng4+ Ke6 74. gxh4 $11) 73. Ke2 {[%emt 0:00:37]} h4 {[%emt 0:00:29]} (73... Bd5 $17) 74. gxh4 {[%emt 0:00:04] The position is equal.} gxh4 {[%emt 0:00:04]} 75. Nd1 {[%emt 0:00:51]} Kf4 {[%emt 0:00:41] ( -> ...Bf3+)} 76. Kf2 {[%emt 0:00:14]} h3 {[%emt 0:00:38] ( -> ...Bf3)} 77. Ne3 {[%emt 0:00:06]} Bc6 {[%emt 0:00:42]} 78. Nf1 {[%emt 0:00:06]} Bb5 {[%emt 0:00:08]} 79. Nh2 {[%emt 0:00:09]} Bc6 {[%emt 0:00:41]} 80. Nf1 {[%emt 0:00:05]} Bb7 {[%emt 0:00:07]} 81. Nh2 {[%emt 0:00:04]} Bg2 {[%emt 0:00:19]} 82. Nf1 {[%emt 0:00:06]} Bxf1 {[%emt 0:01:04]} 83. Kxf1 {[%emt 0:00:03]} h2 {[%emt 0:00:04]} (83... Ke3 $5) 84. Kg2 {[%emt 0:00:02]} h1=B+ {[%emt 0:00:05] And White is the lucky defender.   Weighted Error Value: White=0.21 (precise) /Black=0.18 (very precise)   Mistake:       	White=7     	Black=7      Inaccurate:     	White=4     	Black=5      OK:         	White=29    	Black=26     Best:        	White=9     	Black=4      Strong:       	White=1     	Black=2} 1/2-1/2